Cogmind - Beta 11.1 @@@ ROGUE MODE // 2022.05.28 @ 12:26:03 Player: Terminus Result: Destroyed by D-53 Grenadier with Mini Grenade Launcher Performance ------------- Evolutions (0) 0 Regions Visited (2) 400 Robots Destroyed (10) 50 Value Destroyed (337) 337 Prototype IDs (0) 0 Alien Tech Used (0) 0 Bonus (7) 7 TOTAL SCORE: 794 Bonus ------- Follower Combat Kills 7 Cogmind --------- Core Integrity 0/250 Matter 260/300 Energy 62/250 System Corruption 0% Temperature Cool (30) Movement Walking (120) Location -10/Mines Parts ------- > --- POWER (1) -------- Ion Engine > --- PROPULSION (2) --- Aluminum Leg Aluminum Leg > --- UTILITY (2) ------ Medium Storage Unit > --- WEAPON (2) ------- Small Laser Small Laser > --- INVENTORY (10) --- Heat Sink Heat Sink Improved Heat Sink EM Pulse Gun Makeshift Sword Peak State ------------ > --- POWER ------------ Ion Engine > --- PROPULSION ------- Aluminum Leg Aluminum Leg > --- UTILITY ---------- Improved Heat Sink Medium Storage Unit > --- WEAPON ----------- Small Laser Assault Rifle > --- INVENTORY -------- Ion Engine Aluminum Leg Aluminum Leg Aluminum Leg Heat Sink Improved Heat Sink EM Pulse Gun Light Assault Rifle [Rating: 10] Favorites ----------- Power Ion Engine Engine Ion Engine Propulsion Aluminum Leg Leg Aluminum Leg Utility Improved Heat Sink Device Improved Heat Sink Storage Medium Storage Unit Weapon Assault Rifle Energy Gun Small Laser Ballistic Gun Assault Rifle Build | -11 -10 -10 ------- Run | Scr Mat Min Slots Evolved . | . . . Power . | . . . Propulsion . | . . . Utility . | . . . Weapon . | . . . Parts Attached 20 | 6 9 5 Power 2 | 1 . 1 Engine 2 | 1 . 1 Core . | . . . Reactor . | . . . Propulsion 10 | 2 6 2 Treads . | . . . Leg 10 | 2 6 2 Wheel . | . . . Hover . | . . . Flight . | . . . Utility 3 | 1 2 . Device 1 | . 1 . Storage 2 | 1 1 . Processor . | . . . Hackware . | . . . Protection . | . . . Artifact . | . . . Weapon 5 | 2 1 2 Energy Gun 3 | . 1 2 Energy Cannon . | . . . Ballistic Gun 2 | 2 . . Ballistic Cannon . | . . . Launcher . | . . . Special Weapon . | . . . Impact Weapon . | . . . Slashing Weapon . | . . . Piercing Weapon . | . . . Special Melee Weapon . | . . . Unidentified Prototypes . | . . . Parts Lost 6 | . . 6 Power 1 | . . 1 Propulsion 2 | . . 2 Utility 1 | . . 1 Weapon 2 | . . 2 Highest Loss Streak 6 | . . 6 To Critical Strikes . | . . . Average Slot Usage (%) 96 | . 96 96 Engine 13 | . 14 13 Leg 27 | . 28 26 Device 11 | . 10 13 Storage 14 | . 14 14 Energy Gun 10 | . 7 14 Ballistic Gun 17 | . 20 12 Naked Turns . | . . . Heaviest Build 19 | 13 19 19 Greatest Support 20 | 20 20 20 Greatest Overweight (x) . | . . . Average Overweight (x) . | . . . Largest Inventory Capacity 10 | 8 10 10 Average Capacity 9 | 6 9 10 Most Carried 10 | 2 10 10 Average Carried 7 | . 7 9 Final Capacity 10 | 8 10 10 Final Carried 10 | 2 10 5 Class Distribution -------------------- 51% | Scavenger-Mutant 48% | Mutant Dominant Class ---------------- Mutant | -10/Materials Scavenger-Mutant | -10/Mines Resources | -11 -10 -10 ----------- Run | Scr Mat Min Matter Collected 449 | 228 209 12 Remotely . | . . . Salvage Created 396 | . 376 20 Parts 29 | . 26 3 Haulers Intercepted . | . . . Recyclers Shooed 1 | . . 1 Parts Field Recycled . | . . . Retrieved Matter . | . . . Parts Self-Destructed . | . . . Prevented . | . . . Kills | -11 -10 -10 ------- Run | Scr Mat Min Combat Hostiles Destroyed 9 | . 8 1 Guns 9 | . 8 1 Classes Destroyed 3 | . 2 1 Watcher 1 | . 1 . Swarmer 1 | . . 1 Grunt 8 | . 8 . Best Kill Streak 2 | . 2 1 Combat Bots Only 2 | . 2 1 Max Kills in Single Turn 1 | . 1 1 Gunslinging . | . . . Exploded . | . . . Melee . | . . . Uniques/NPCs Destroyed . | . . . Combat | -11 -10 -10 -------- Run | Scr Mat Min Damage Taken 1068 | . 259 809 Core 267 | . 52 215 Absorbed by Shields . | . . . Core Remaining (%) 100 | 100 . . Volleys Fired 37 | . 26 11 Largest 2 | . 2 2 Hottest 80 | . 60 80 Shots Fired 73 | . 51 22 Gun 73 | . 51 22 Cannon . | . . . Launcher . | . . . Special . | . . . Kinetic 42 | . 37 5 Thermal 31 | . 14 17 Explosive . | . . . Electromagnetic . | . . . Robot Hit Streak 9 | . 8 9 Robot Miss Streak 4 | . 3 4 Penetration Max . | . . . Secondary Targets . | . . . Shots Hit Robots 46 | . 32 14 Core Hits 29 | . 23 6 Critical Kills . | . . . Critical Parts Destroyed . | . . . Critical Strikes . | . . . Melee Attacks . | . . . Impact . | . . . Slashing . | . . . Piercing . | . . . Sneak Attacks . | . . . Combat Hostiles . | . . . Follow-up Attacks . | . . . Damage Inflicted 564 | . 388 176 Guns 552 | . 381 171 Cannons . | . . . Explosions . | . . . Melee . | . . . Ramming 12 | . 7 5 Kinetic 263 | . 249 14 Thermal 289 | . 132 157 Explosive . | . . . Electromagnetic . | . . . Impact . | . . . Slashing . | . . . Piercing . | . . . Highest Corruption . | . . . Average Corruption . | . . . Corruption Purged . | . . . Corruption Blocked . | . . . Overload Shots . | . . . Overflow Damage . | . . . Projectiles . | . . . Explosions . | . . . Melee . | . . . Knockbacks . | . . . Impact . | . . . Kinetic . | . . . Secondary . | . . . Self-Inflicted Damage . | . . . Shots . | . . . Rammed . | . . . Targets Rammed 3 | . 1 2 Kicked 3 | . 1 2 Crushed . | . . . Highest Temperature 30 | . 12 30 Average Temperature 10 | . 7 13 Received Heat Transfer 147 | . 147 . Siege Activations . | . . . Robots Corrupted . | . . . Combat Hostiles . | . . . Parts Fried . | . . . Impact Corruptions . | . . . Robots Melted . | . . . Combat Hostiles . | . . . Parts Melted . | . . . Heat Transferred 650 | . 300 350 Parts Sabotaged . | . . . Parts Stolen . | . . . Parts Stripped . | . . . Power Chain Reactions . | . . . Missiles Intercepted . | . . . Alert | -11 -10 -10 ------- Run | Scr Mat Min Peak Influence 299 | . 299 169 Initial 116 | . . 116 Average 136 | . 156 140 Maximum Alert Level 1 | . 1 . Low Security (%) 79 | 100 65 100 Level 1 20 | . 34 . Level 2 . | . . . Level 3 . | . . . Level 4 . | . . . Level 5 . | . . . High Security . | . . . Max Security . | . . . Squads Dispatched 4 | . 3 1 Investigation 1 | . 1 . Extermination . | . . . Reinforcement 2 | . 2 . Assault 1 | . . 1 Garrison . | . . . Intercept . | . . . Searches Triggered . | . . . Construction Impeded . | . . . Haulers Reinforced . | . . . Active Scanning Responses . | . . . Cargo Convoy Interrupts . | . . . Stealth | -11 -10 -10 --------- Run | Scr Mat Min Distress Signals 2 | . 1 1 Communications Jammed . | . . . Distress Signals . | . . . Times Spotted 20 | . 15 5 Peak Tracking Total 3 | . 3 3 Tactical Retreats . | . . . Traps | -11 -10 -10 ------- Run | Scr Mat Min Traps Triggered 1 | . 1 . Indirectly . | . . . Trap Hack Attempts . | . . . Triggered . | . . . Disarmed . | . . . Reprogrammed . | . . . Reused . | . . . Traps Extracted . | . . . Installed . | . . . Triggered . | . . . Machines | -11 -10 -10 ---------- Run | Scr Mat Min Machines Disabled . | . . . Max in Single Turn . | . . . Machines Sabotaged . | . . . Garrisons Compromised . | . . . Overloaded Fab Kills . | . . . Hacking | -11 -10 -10 --------- Run | Scr Mat Min Machines Accessed 2 | . 2 . Terminals 2 | . 2 . Fabricators . | . . . Repair Stations . | . . . Recycling Units . | . . . Scanalyzers . | . . . Garrison Access . | . . . Total Hacks 7 | . 7 . Successful 6 | . 6 . Failed 1 | . 1 . Catastrophic . | . . . Database Lockouts . | . . . Manual 6 | . 6 . Terminals 7 | . 7 . Fabricators . | . . . Repair Stations . | . . . Recycling Units . | . . . Scanalyzers . | . . . Garrison Access . | . . . Terminal Hacks 4 | . 4 . Robot Analysis 2 | . 2 . Terminal Index 1 | . 1 . Hauler Manifests 1 | . 1 . Fabricator Hacks . | . . . Repair Station Hacks . | . . . Recycling Unit Hacks . | . . . Scanalyzer . | . . . Garrison Access Hacks . | . . . Unauthorized Hacks 2 | . 2 . Terminals 2 | . 2 . Botnet 2 | . 2 . Fabricators . | . . . Repair Stations . | . . . Recycling Units . | . . . Scanalyzers . | . . . Garrison Access . | . . . Data Cores Recovered . | . . . Used . | . . . Hacking Detections 2 | . 2 . Full Trace Events . | . . . Feedback Events . | . . . Feedback Blocked . | . . . Robot Schematics Acquired . | . . . Robots Built . | . . . Authchips . | . . . Time . | . . . Total Robot Build Rating . | . . . Part Schematics Acquired . | . . . Parts Built . | . . . Authchips . | . . . Time . | . . . Total Part Build Rating . | . . . Parts Repaired . | . . . Time . | . . . Parts Recycled . | . . . Recycled Matter . | . . . Retrieved Matter . | . . . Retrieved Components . | . . . Parts Scanalyzed . | . . . Part Schematics Acquired . | . . . Parts Damaged . | . . . Bothacking | -11 -10 -10 ------------ Run | Scr Mat Min Used RIF Installer . | . . . Robots Hacked . | . . . Non-combat . | . . . Combat . | . . . Robot Hacks Applied . | . . . Relay Couplers Released . | . . . Fabnet Peak Effective % . | . . . Robots Rewired . | . . . Allies Hacked . | . . . Hacks Repelled . | . . . Allies | -11 -10 -10 -------- Run | Scr Mat Min Total Allies 1 | . . 1 Largest Group 1 | . . 1 Highest-Rated Group 31 | . . 31 Highest-Rated Ally 31 | . . 31 Total Orders . | . . . Ally Attacks 6 | . . 6 Total Damage 63 | . . 63 Kills 1 | . . 1 Allies Corrupted . | . . . Allies Melted . | . . . Intel | -11 -10 -10 ------- Run | Scr Mat Min Robot Analysis Total 2 | . 2 . Derelict Logs Recovered 1 | . . 1 Drone Launches . | . . . Drone Recoveries . | . . . Exploration | -11 -10 -10 ------------- Run | Scr Mat Min Turns Passed 658 | 60 378 220 Spaces Moved 400 | 50 206 144 Core 15 | 15 . . Treads . | . . . Legs 385 | 35 206 144 Wheels . | . . . Hover . | . . . Flight . | . . . Fastest Speed 50 | 50 120 120 Average Speed 117 | 99 120 120 Slowest Speed 120 | 120 120 120 Overloaded Moves . | . . . Propulsion Burnouts . | . . . Robots Hopped . | . . . Cave-ins Triggered . | . . . Exploration Rate (%) 30 | 3 48 41 Regions Visited 2 Branch Regions 1 Pre-discovered Areas . | . . . Known Exits Taken . | . . . Unknown Exits Taken 2 | 1 1 . Scrap Searched . | . . . Spaces Dug . | . . . Terrain Destroyed . | . . . Melee . | . . . Projectile . | . . . AOE . | . . . Terrain Rammed . | . . . Walls Destroyed . | . . . Machines Disabled . | . . . Actions | -11 -10 -10 --------- Run | Scr Mat Min Total 516 | 57 289 170 Wait 37 | . 31 6 Move 398 | 49 205 144 Hop . | . . . Pick Up 12 | 2 9 1 Fast Attach 7 | 6 1 . Attach 5 | . . 5 Detach . | . . . Swap 8 | . 8 . Drop 9 | . 8 1 Fire 37 | . 26 11 Melee . | . . . Ram . | . . . Kick 3 | . 1 2 Crush . | . . . Escape Stasis . | . . . Rewire . | . . . Trap . | . . . Miscellaneous . | . . . Route ------- -11/Scrapyard -10/Materials (discovered 2 exits: [*Mat] / [*Min]) -10/Mines (discovered 1 exit: [*Mat]) History --------- Turn | Location | Event 3 | -11/Scrapyard | Discovered new exit (range 15) 61 | -11/Scrapyard | Entered Materials 275 | -10/Materials | Discovered new exit (range 15) 309 | -10/Materials | Build established: Mutant 392 | -10/Materials | Discovered new exit (range 7) 439 | -10/Materials | Entered Mines 476 | -10/Mines | Met a Derelict testing a Signal Generator 609 | -10/Mines | A weapon hastily lodged in a ceiling crevice suddenly fell to the ground 625 | -10/Mines | Assembled infested the area 628 | -10/Mines | Learned Materials interactive machine intel 630 | -10/Mines | Assisted by a Guerilla fighting off Assembled 633 | -10/Mines | Build established: Scavenger-Mutant 634 | -10/Mines | Discovered new exit (range 7) 642 | -10/Mines | Core integrity fell below 50% 652 | -10/Mines | Core integrity fell below 20% 659 | -10/Mines | Destroyed by D-53 Grenadier with Mini Grenade Launcher Last Messages --------------- 00635_ HV Slug penetrates D-53 Grenadier. 00635_ D-53 Grenadier suffers critical hit (Destroy). 00635_ D-53 Grenadier knocked back. 00635_ R-06 Scavenger collects Arm. Wheel. 00637_ 9R-OYA(h) destroyed. 00637_ R-06 Scavenger destroyed. 00639_ R-06 Scavenger collects Lgt. Ion Engine. 00640_ The unstable cave ceiling collapses. 00642_ R-06 Scavenger collects Flexi-carbon Leg. 00645_ Aluminum Leg destroyed. 00645_ Imp. Heat Sink destroyed. 00646_ Ion Engine destroyed. 00646_ R-06 Scavenger collects Arm. Wheel. 00647_ Aluminum Leg destroyed. 00648_ Sml. Laser destroyed. 00649_ T-07 Excavator destroyed. 00650_ The unstable cave ceiling collapses. 00653_ R-06 Scavenger destroyed. 00653_ D-53 Grenadier destroyed. 00655_ The unstable cave ceiling collapses. Map ----- +----------------------------------------------------+ | ???????????????????????????????????????????## | | ???????????????????????????????????????????# | | ??????????????????????????????????????????# ### | | ?????????????????????????????????????????# ##?## | | ????????????????????????????????????????# ????# | | ????????????????????????????????????????# ????? | | ????????????????????????????????????????# ????? | | ???????????????????????????????????????# ????? | | ??????????????????????????????????????? ??? ?? | | ???????????????????????????????????????? ? ??? ?? | | ??????????????????????????????????????????????# ## | | ??????????????????????????????????????????????# | | ??????????????????????????????????????????????# ## | | ??????????????????????????????????????????????# #? | | ??????????????????????????????????????????????# #? | | ??????????????????????????????????????????????# #? | | ???????????????????#??????????????????????????# #? | | ???????????????????# ?######??????????????????# #? | | ????????????????#### ## ###????? ??????????# #? | | ????????????????# ##???? ??????????# ## | | ????????????????# < ####? ??????????# ## | | ????????????????# # ## ???#?????## | | ????????????????# # #?????# | | ????????????????# #?????# | | ????????????????# # ????????# | | ????????????????????# @ #????? ???????## | | ??????????????????#?# #????? ???????# | | ??????????????????# % #????? ??????## ## | | ???????????????#### # ##????? ##???## ##? | | ????????????? % ##?????? #???# ##?? | | ????????????????####=% % ##??????# #???#% ##??? | | ??????????????????# d ##?????# #??## ##???? | | ??????????????????## ####??# #??# ##???? | | ???????????????????# # #### #### #???? | | ???????????????????## % #???? | | ??????????????????## ####### ##???? | | ??????????????????# ## #?????####????? | | ??????????????????# #### ##?????????????? | | ??????????????????## ##??#######??????????????? | | ???????????????????######????????????????????????? | | ?????????????????????????????????????????????????? | | ?????????????????????????????????????????????????? | | | | | | | | | | | | | | | | | +----------------------------------------------------+ Best States ------------- Heat Dissipation 39 Energy Generation 10 Energy Capacity 250 Matter Stores 300 Matter Capacity 300 Sight Range 16 Terrain Scan Density 10 Evasion (%) 55 Item Schematics ----------------- None Robot Schematics ------------------ None Fabricated ------------ Nothing Alien Tech Used ----------------- None Achievements -------------- None Challenges ------------ None Game ------ Seed PlasmaMetafiberBlaster Manual? 0 Play Time 00:06:52 Cumulative 1494.4 hours Start 2022.05.28 @ 12:20:36 End 2022.05.28 @ 12:26:03 Sessions 1 Manual Loads 0 Difficulty Rogue Special Mode None Game No. 527 Rogue 527 Adventurer 0 Explorer 0 Win Type - Total 106 Types 22/12/44/6/1/2/17/1/1 Lore% 97 Gallery% 96 Achievement% 86 Wizard Run 0 Options --------- ASCII 0 Keyboard 0 Movement Numpad Keybinds 0 Fullscreen 1 Font 18/SmallcapsGlow Map View 76x50 Tactical HUD 1 Map Filters NONE Filters NONE Steam 1 RUN: 77b4b422-0e4e-4c5f-aae7-1ef6d97bd22a